fUST/lending_fUST_20260302
["ID","MTS","AMOUNT","RATE_DAILY","PERIOD"]
[406972306,1772385039100,-608.0,0.0001948,5]
[406972307,1772385039108,-462.0,0.0001948,5]
[406972308,1772385039117,-376.0,0.00019512,2]
[406972309,1772385039126,-376.0,0.00019523,2]
[406972310,1772385039137,-376.0,0.00019527,2]
[406972311,1772385039146,-376.0,0.00019528,2]
[406972312,1772385039157,-2434.74389024,0.00019532,2]
[406972313,1772385039167,-2524.82941417,0.00019587,2]
[406972314,1772385039179,-268.7077915,0.00019596,2]
[406972315,1772385039188,-2618.2481025,0.00019642,2]
[406972316,1772385039198,-1148.14075902,0.00019697,2]
[406972317,1772385039208,-376.0,0.00019704,2]
[406972318,1772385039217,-1000.0,0.00019746,2]
[406972319,1772385039226,-1000.0,0.00019746,2]
[406972321,1772385039238,-1000.0,0.00019746,2]
[406972322,1772385039247,-1000.0,0.00019746,2]
[406972323,1772385039257,-1000.0,0.00019746,2]
[406972324,1772385039266,-1000.0,0.00019746,2]
[406972325,1772385039275,-1000.0,0.00019746,2]
[406972326,1772385039285,-1000.0,0.00019746,2]
[406972327,1772385039294,-1000.0,0.00019746,2]
[406972328,1772385039304,-168.278,0.00019746,2]
[406972329,1772385039313,-1152.0,0.00019757,2]
[406972330,1772385039322,-376.0,0.00019778,2]
[406972331,1772385039332,-295.512,0.00019784,2]
[406972332,1772385039341,-12476.41863354,0.00019798,2]
[406972333,1772385039351,-744.97886799,0.00019841,2]
[406972334,1772385039360,-376.0,0.00019896,2]
[406972335,1772385039369,-376.0,0.00019916,2]
[406972336,1772385039379,-376.0,0.00019962,2]
[406972337,1772385039388,-88818.25233983,0.0001999,2]
[406972339,1772385039401,-11181.74766017,0.0001999,2]
[406972341,1772385039410,-502.93,0.0002,2]
[406972343,1772385039420,-216744.59640194,0.0002,2]
[406972363,1772385045780,-383.71407802,0.000198,2]
[406972364,1772385045792,-4038.59597134,0.000198,2]
[406972365,1772385045803,-2604.9578459,0.0002,2]
[406972366,1772385045816,-1331.76307925,0.0002,2]
[406972368,1772385843795,224.2769888,7.678e-05,2]
[406972397,1772386231665,-437.6864776,0.00013272,2]
[406972399,1772386231675,-500.0,0.00013273,2]
[406972401,1772386231685,-150.0,0.00013273,2]
[406972403,1772386231694,-500.0,0.00013699,2]
[406972405,1772386231703,-1000.40909897,0.00014247,2]
[406972406,1772386231713,-1944.1193807,0.00014459,2]
[406972408,1772386231722,-225.30264724,0.000149,2]
[406972410,1772386231732,-2162.5074119,0.00015273,2]
[406972411,1772386231742,-177.0,0.00015273,2]
[406972412,1772386231752,-300.0,0.00015699,2]
[406972414,1772386231762,-145.06064935,0.000157,2]
[406972429,1772386238015,-77.57634903,0.000157,2]
[406972430,1772386238032,-1142.78734736,0.000157,2]
[406972432,1772386238042,-1181.04390814,0.000157,2]
[406972433,1772386238053,-66762.5900648,0.00015725,2]
[406972435,1772386238065,-2142.040014,0.000158,2]
[406972436,1772386238078,-500.0,0.000158,2]
[406972437,1772386238093,-500.0,0.000158,2]
[406972438,1772386238111,-320.93,0.000158,2]
[406972439,1772386238122,-347.33209724,0.000158,2]
[406972440,1772386238133,-157.09559417,0.000158,2]
[406972441,1772386238144,-333.05254921,0.000158,2]
[406972442,1772386238154,-1142.78734736,0.0001612,5]
[406972443,1772386238166,-1181.04390814,0.0001612,5]
[406972444,1772386238175,-1142.78734736,0.00016541,9]
[406972445,1772386238186,-1181.04390814,0.00016541,9]
[406972446,1772386238196,-222.63699836,0.00016621,2]
[406972447,1772386238208,-347.33209724,0.00016663,9]
[406972448,1772386238218,-1142.78734736,0.00016961,13]
[406972449,1772386238229,-1181.04390814,0.00016961,13]
[406972450,1772386238238,-420.0,0.0001717,2]
[406972451,1772386238247,-204.0,0.00017273,2]
[406972452,1772386238256,-1142.78734736,0.00017381,16]
[406972453,1772386238266,-1181.04390814,0.00017381,16]
[406972454,1772386238277,-333.05254921,0.00017527,17]
[406972455,1772386238286,-347.33209724,0.00017527,17]
[406972456,1772386238295,-250.0,0.00017537,2]
[406972457,1772386238305,-222.63699836,0.00017542,2]
[406972458,1772386238314,-1142.78734736,0.00017802,20]
[406972459,1772386238323,-1181.04390814,0.00017802,20]
[406972460,1772386238336,-157.09559417,0.00017815,20]
[406972461,1772386238346,-7237.52071605,0.0001805,2]
[406972462,1772386238355,-5181.89353043,0.0001805,2]
[406972463,1772386238365,-6166.88155687,0.0001805,2]
[406972464,1772386238374,-8393.81100796,0.0001805,2]
[406972465,1772386238383,-8389.37955083,0.0001805,2]
[406972466,1772386238644,-1236.73712935,0.0001805,2]
[406972467,1772386238655,-253.67631945,0.00018222,24]
[406972475,1772386240477,-484.86821652,0.00018222,24]
[406972476,1772386240531,-404.24281139,0.00018222,24]
[406972477,1772386240543,-201.31774044,0.00018222,24]
[406972478,1772386240556,-747.202766,0.00018222,24]
[406972479,1772386240570,-232.5234017,0.00018222,24]
[406972480,1772386240582,-347.33209724,0.0001839,25]
[406972481,1772386240592,-222.63699836,0.00018462,2]
[406972482,1772386240602,-744.97886799,0.00018533,2]
[406972483,1772386240613,-1142.78734736,0.00018642,28]
[406972484,1772386240623,-553.47435171,0.00018642,28]
[406972485,1772386240635,-627.56955643,0.00018642,28]
[406972486,1772386240645,-587.0,0.00018778,2]
[406972487,1772386240655,-164.419644,0.00019,7]
[406972488,1772386240665,-248.51841649,0.00019062,31]
[406972495,1772386243607,-894.26893087,0.00019062,31]
[406972496,1772386243618,-1181.04390814,0.00019062,31]
[406972497,1772386243628,-191.018,0.00019094,2]
[406972498,1772386243638,-611.817,0.00019094,2]
[406972499,1772386243648,-161.34871835,0.0001912,30]
[406972500,1772386243665,-338.65128165,0.0001912,30]
[406972501,1772386243675,-656.14960456,0.0001912,30]
[406972502,1772386243684,-656.14960456,0.0001912,30]
[406972503,1772386243694,-333.05254921,0.00019254,32]
[406972504,1772386243703,-347.33209724,0.00019254,32]
[406972505,1772386243712,-231.0,0.00019273,2]
[406972506,1772386243722,-222.63699836,0.00019383,2]
[406972507,1772386243731,-187.78006525,0.00019404,2]
[406972508,1772386243741,-194.72792766,0.00019404,2]
[406972509,1772386243750,-201.93286099,0.00019404,2]
[406972510,1772386243760,-209.40437684,0.00019404,2]
[406972511,1772386243769,-217.15233878,0.00019404,2]
[406972512,1772386243782,-225.18697532,0.00019404,2]
[406972513,1772386243791,-208.93945003,0.00019404,2]
[406972514,1772386243801,-1142.78734736,0.00019483,35]
[406972515,1772386243811,-1181.04390814,0.00019483,35]
[406972516,1772386243820,-47.08833613,0.00019766,5]
[406972517,1772386243832,-395.91166387,0.00019766,5]
[406972518,1772386243842,-679.0,0.00019766,5]
[406972519,1772386243852,-157.09559417,0.0001983,38]
[406972520,1772386243861,-1085.23498852,0.00019838,2]
[406972521,1772386243870,-225.30280533,0.00019903,39]
[406972522,1772386243882,-917.48454203,0.00019903,39]
[406972523,1772386243891,-119.89863797,0.00019903,39]
[406972524,1772386243904,-1061.14527017,0.00019903,39]
[406972525,1772386243915,-1891.0220345,0.00019936,2]
[406972526,1772386243927,-398.30861033,0.00019936,2]
[406972527,1772386243939,-300.0,0.00019936,2]
[406972528,1772386243950,-15840.01320001,0.00019936,2]
[406972533,1772386245891,-796.3799828,0.00019936,2]
[406972534,1772386245903,-1716.31842216,0.00019936,2]
[406972535,1772386245914,-566.0,0.00019936,5]
[406972536,1772386245924,-425.0,0.00019936,5]
[406972537,1772386245934,-7417.21277286,0.0001999,2]
[406972538,1772386679928,155.36,8.991e-05,2]
[406972539,1772386680196,155.34,8.991e-05,2]
[406972583,1772387432049,-298.42025008,0.00012488,2]
[406972586,1772387432059,-150.0,0.0001284,2]
[406972588,1772387432069,-500.0,0.00013273,2]
[406972590,1772387432083,-500.0,0.00013273,2]
[406972592,1772387432093,-500.0,0.00013699,2]
[406972594,1772387432102,-150.0,0.000137,2]
[406972596,1772387432111,-1000.0,0.00014247,2]
[406972598,1772387432120,-1500.0,0.00014795,2]
[406972600,1772387432129,-177.0,0.0001484,2]
[406972602,1772387432139,-951.9980789,0.00015342,2]
[406972604,1772387432148,-300.0,0.00015799,2]
[406972606,1772387432158,-1067.0,0.00015799,2]
[406972608,1772387432167,-683.868116,0.000158,2]
[406972610,1772387432176,-2394.68103082,0.000158,2]
[406972678,1772387440475,-424.95499154,0.000158,2]
[406972679,1772387440485,-1559.9928674,0.00015947,2]
[406972699,1772387443093,-8440.0071326,0.00015947,2]
[406972700,1772387443103,-204.0,0.0001684,2]
[406972701,1772387443115,-1000.0,0.00017253,2]
[406972702,1772387443126,-420.0,0.00017277,2]
[406972703,1772387443137,-3399.83245412,0.00017684,2]
[406972704,1772387443148,-104.75419018,0.00017684,2]
[406972705,1772387443158,-722.40215851,0.00018136,2]
[406972706,1772387443168,-100.00450751,0.00018136,2]
[406972707,1772387443180,-1184.2659965,0.00018136,2]
[406972708,1772387443190,-769.7340035,0.00018136,2]
[406972709,1772387443201,-778.35359997,0.00018136,2]
[406972710,1772387443212,-456.57838639,0.00018136,2]
[406972711,1772387443223,-401.3345325,0.00018138,2]
[406972712,1772387443232,-744.97886799,0.00018515,2]
[406972713,1772387443242,-231.0,0.0001884,2]
[406972714,1772387443252,-296.0,0.00018893,2]
[406972715,1772387443262,-438.27821312,0.000189,2]
[406972716,1772387443274,-1050.65323609,0.000189,2]
[406972717,1772387443283,-565.76861012,0.000189,2]
[406972718,1772387443293,-39008.92586858,0.0001899,2]
[406972720,1772387443304,-3866.24992679,0.0001899,2]
[406972722,1772387443316,-10567.61599995,0.0001899,2]
[406972741,1772387446373,-8422.37070411,0.0001899,2]
[406972742,1772387446385,-610.99505787,0.0001899,2]
[406972745,1772387603069,163.29,0.00014222,120]
[406972748,1772388043401,-300.0,0.00010999,2]
[406972749,1772388043430,-348.14288364,0.00010999,2]
[406972753,1772388483290,512.42,8.991e-05,2]
[406972754,1772388483642,512.42,8.991e-05,2]
[406972807,1772388632309,-640.18772814,0.00010677,2]
[406972808,1772388632316,-150.0,0.00010839,2]
[406972811,1772388632324,-932.71978526,0.00010897,2]
[406972813,1772388632333,-300.0,0.00010995,2]
[406972815,1772388632339,-234.0,0.00010995,2]
[406972817,1772388632347,-2.86026399,0.00010996,2]
[406972819,1772388632358,-497.13973601,0.00010996,2]
[406972821,1772388632366,-500.0,0.00010996,2]
[406972823,1772388632372,-446.64967971,0.00010996,2]
[406972825,1772388632381,-500.0,0.00010996,2]
[406972828,1772388632390,-278.85240389,0.00010996,2]
[406972830,1772388632398,-377.35818039,0.00010996,2]
[406972832,1772388632409,-122.64181961,0.00010996,2]
[406972835,1772388632420,-500.0,0.00010996,2]
[406972837,1772388632428,-355.30788534,0.00010996,2]
[406972839,1772388632435,-1772.05029505,0.00010997,2]
[406972865,1772388638090,-2774.43317455,0.00010997,2]
[406972869,1772388638147,-8759.70718021,0.00010997,2]
[406972871,1772388638158,-17031.59434178,0.00010997,2]
[406972873,1772388638168,-27174.44,0.00011,2]
[406972875,1772388638177,-152.78,0.000119,2]
[406972878,1772388638186,-407.0,0.00012082,2]
[406972879,1772388638195,-177.0,0.00012839,2]
[406972882,1772388638204,-932.71978523,0.00012842,2]
[406972885,1772388638213,-2155.23689601,0.000129,2]
[406972888,1772388638222,-2155.23689594,0.00013248,2]
[406972890,1772388638231,-500.0,0.00013273,2]
[406972892,1772388638240,-500.58340328,0.00013273,2]
[406972894,1772388638250,-502.47472288,0.00013273,2]
[406972896,1772388638260,-501.64949506,0.00013273,2]
[406972899,1772388638270,-565.02872962,0.00013273,2]
[406972901,1772388638280,-500.0,0.00013273,2]
[406972903,1772388638289,-500.0,0.00013273,2]
[406972904,1772388638299,-575.37500272,0.00013273,2]
[406972906,1772388638308,-500.0,0.00013273,2]
[406972908,1772388638316,-400.52339024,0.00013699,2]
[406972910,1772388638325,-500.0,0.00013699,2]
[406972912,1772388638334,-1000.0,0.00014247,2]
[406972914,1772388638343,-932.71978523,0.00014786,2]
[406972916,1772388638352,-1500.0,0.00014795,2]
[406972918,1772388638360,-204.0,0.00014839,2]
[406972920,1772388638370,-2000.0,0.00015342,2]
[406972922,1772388638379,-357.24206441,0.0001555,2]
[406972924,1772388638388,-408.27664504,0.0001555,2]
[406972926,1772388638397,-637.29432561,0.0001555,2]
[406972928,1772388638407,-2155.23689594,0.00015598,2]
[406972930,1772388638416,-2000.0,0.000157,2]
[406972932,1772388638425,-153.3371012,0.000158,2]
[406972934,1772388638434,-2500.0,0.0001589,2]
[406972936,1772388638443,-6425.2403972,0.00016292,2]
[406972938,1772388638453,-203.385924,0.00016431,2]
[406972940,1772388638462,-932.71978523,0.00016731,2]
[406972942,1772388638471,-434.55507145,0.00016738,2]
[406972944,1772388638480,-294.24619409,0.00016739,2]
[406972945,1772388638490,-308.62,0.00016739,2]
[406972946,1772388638499,-308.62,0.00016739,2]
[406972947,1772388638508,-308.62,0.00016739,2]
[406972948,1772388638517,-308.62,0.00016739,2]
[406972949,1772388638526,-308.62,0.00016739,2]
[406972950,1772388638536,-308.62,0.00016739,2]
[406972951,1772388638545,-308.62,0.00016739,2]
[406972952,1772388638554,-230.97,0.00016739,2]
[406972953,1772388638563,-231.0,0.00016839,2]
[406972954,1772388638573,-2132.46429434,0.0001685,2]
[406972955,1772388638583,-156.45790949,0.0001685,2]
[406972956,1772388638594,-1000.0,0.000176,2]
[406972957,1772388638604,-500.0,0.00017683,2]
[406972958,1772388638615,-2155.23689594,0.00017949,2]
[406972959,1772388638624,-307.9502512,0.00018449,2]
[406972960,1772388638634,-2189.767,0.00018449,2]
[406972961,1772388638644,-1399.856,0.00018449,2]
[406972962,1772388638654,-729.0,0.00018449,2]
[406972963,1772388638663,-952.5961179,0.00018475,2]
[406972964,1772388638673,-161.10576746,0.00018481,2]
[406972965,1772388638904,-4490.03596,0.00018547,2]
[406972966,1772388638914,-2330.8572863,0.00018547,2]
[406972967,1772388638924,-29058.8375984,0.00018547,2]
[406972968,1772388638934,-15346.6345497,0.00018547,2]
[406972969,1772388638943,-932.71978523,0.00018675,2]
[406972970,1772388638953,-403.0,0.00018805,2]
[406972971,1772388638962,-258.0,0.00018839,2]
[406972972,1772388638971,-744.97886799,0.00018856,2]
[406972973,1772388638981,-442.0,0.00018865,5]
[406972974,1772388638990,-635.0,0.00018865,5]
[406972975,1772388639000,-376.0,0.00018875,2]
[406972976,1772388639010,-376.0,0.00018903,2]
[406972977,1772388639019,-376.0,0.00018937,2]
[406972978,1772388639030,-376.0,0.00018952,2]
[406972979,1772388639040,-376.0,0.00018963,2]
[406972980,1772388639050,-612.31208511,0.00018989,2]
[406972981,1772388639059,-29322.82860508,0.0001899,2]
[406972982,1772388639069,-376.0,0.00019024,2]
[406972983,1772388639079,-715.0,0.0001904,2]
[406972984,1772388639089,-376.0,0.00019108,2]
[406972985,1772388639098,-500.0,0.0001912,30]
[406972986,1772388639108,-596.07718047,0.0001912,30]
[406972987,1772388639117,-588.26139478,0.0001912,30]
[406972988,1772388639127,-411.73860522,0.0001912,30]
[406972989,1772388639137,-150.0,0.00019209,2]
[406972990,1772388639146,-376.0,0.00019209,2]
[406972991,1772388639155,-376.0,0.00019219,2]
[406972992,1772388639165,-250.0,0.0001922,2]
[406972993,1772388639175,-187.78006525,0.0001922,2]
[406972994,1772388639185,-194.72792766,0.0001922,2]
[406972995,1772388639195,-201.93286099,0.0001922,2]
[406972996,1772388639204,-209.40437684,0.0001922,2]
[406972997,1772388639214,-217.15233878,0.0001922,2]
[406972998,1772388639223,-225.18697532,0.0001922,2]
[406972999,1772388639232,-500.0,0.0001922,2]
[406973000,1772388639242,-233.51889341,0.0001922,2]
[406973001,1772388639252,-500.0,0.0001922,2]
[406973002,1772388639262,-242.15909246,0.0001922,2]
[406973003,1772388639271,-500.0,0.0001922,2]
[406973004,1772388639280,-251.11897888,0.0001922,2]
[406973005,1772388639290,-500.0,0.0001922,2]
[406973006,1772388639300,-260.4103811,0.0001922,2]
[406973007,1772388639310,-500.0,0.0001922,2]
[406973008,1772388639320,-270.0455652,0.0001922,2]
[406973009,1772388639329,-500.0,0.0001922,2]
[406973010,1772388639339,-280.03725112,0.0001922,2]
[406973011,1772388639349,-500.0,0.0001922,2]
[406973012,1772388639359,-209.0340152,0.0001922,2]
[406973013,1772388639369,-500.0,0.0001922,2]
[406973014,1772388639379,-364.00678751,0.0001922,2]
[406973015,1772388639389,-376.0,0.00019234,2]
[406973016,1772388639399,-607.7830632,0.00019271,2]
[406973017,1772388639409,-618.1918194,0.00019271,2]
[406973018,1772388639419,-376.0,0.00019275,2]
[406973019,1772388639428,-308.1501824,0.0001931,2]
[406973020,1772388639437,-376.0,0.00019328,2]
[406973021,1772388639447,-376.0,0.00019343,2]
[406973022,1772388639457,-716.0,0.0001936,2]
[406973023,1772388639466,-151.0,0.0001936,2]
[406973024,1772388639476,-376.0,0.00019392,2]
[406973025,1772388639486,-376.0,0.00019445,2]
[406973026,1772388639496,-423.0,0.00019452,2]
[406973027,1772388639506,-376.0,0.00019558,2]
[406973028,1772388639516,-423.0,0.00019567,2]
[406973029,1772388639525,-195.98910135,0.00019746,2]
[406973030,1772388639535,-352.78038243,0.00019746,2]
[406973031,1772388639545,-498.46811307,0.00019746,2]
[406973032,1772388639555,-897.24260353,0.00019746,2]
[406973033,1772388639565,-293.93866523,0.00019746,2]
[406973034,1772388639576,-64775.53894993,0.00019798,2]
[406973035,1772388639586,-9166.03745179,0.000198,2]
[406973036,1772388639595,-257.422,0.000198,2]
[406973037,1772388639605,-627.16512431,0.00019823,2]
[406973038,1772388639615,-7112.92830399,0.000199,2]
[406973039,1772388639625,-423.0,0.00019907,2]
[406973040,1772388639634,-423.0,0.00019974,2]
[406973041,1772388639644,-501.24732789,0.00019989,2]
[406973042,1772388639653,-1000.0,0.0001999,2]
[406973043,1772388639663,-1000.0,0.0001999,2]
[406973044,1772388639672,-859.468,0.0001999,2]
[406973045,1772388639681,-1000.0,0.0001999,2]
[406973046,1772388639691,-1000.0,0.0001999,2]
[406973047,1772388639701,-1000.0,0.0001999,2]
[406973048,1772388639711,-1000.0,0.0001999,2]
[406973049,1772388639720,-1000.0,0.0001999,2]
[406973050,1772388639730,-1000.0,0.0001999,2]
[406973051,1772388639742,-1000.0,0.0001999,2]
[406973052,1772388639755,-1000.0,0.0001999,2]
[406973053,1772388639765,-1000.0,0.0001999,2]
[406973054,1772388639774,-1000.0,0.0001999,2]
[406973056,1772388639785,-1000.0,0.0001999,2]
[406973057,1772388639796,-1000.0,0.0001999,2]
[406973058,1772388639805,-1000.0,0.0001999,2]
[406973059,1772388639815,-1000.0,0.0001999,2]
[406973060,1772388639831,-1000.0,0.0001999,2]
[406973061,1772388639840,-1000.0,0.0001999,2]
[406973063,1772388639850,-1000.0,0.0001999,2]
[406973064,1772388639859,-1000.0,0.0001999,2]
[406973065,1772388639867,-1000.0,0.0001999,2]
[406973066,1772388639876,-1000.0,0.0001999,2]
[406973067,1772388639885,-868.412,0.0001999,2]
[406973068,1772388639895,-811046.77046242,0.0002,2]
[406973069,1772388639909,-733.69889276,0.0002,2]
[406973070,1772388639920,-125790.77413987,0.0002,2]
[406973103,1772388643077,160.0,0.0001001,2]
[406973104,1772388643333,-1382.8,0.0002,2]
[406973105,1772388643344,-3452.28369231,0.0002,2]
[406973106,1772388643356,-361.0,0.0002,2]
[406973107,1772388643367,-525.328232,0.0002,2]
[406973108,1772388643379,-771.14628782,0.0002,2]
[406973109,1772388643390,-493.6422938,0.0002,2]
[406973110,1772388643403,-3824.77214768,0.0002,2]
[406973111,1772388643412,-360.0,0.0002,2]
[406973112,1772388643423,-151.0,0.0002,2]
[406973113,1772388643433,-36783.03961157,0.0002,2]
[406973114,1772388643445,-2669.56216602,0.0002,2]
[406973115,1772388643464,-28688.66882499,0.0002,2]
[406973116,1772388643475,-3599.1,0.0002,2]
[406973117,1772388643486,-1283.82286199,0.0002,2]
[406973118,1772388643498,-1316.27915126,0.0002,2]
[406973119,1772388643510,-274.6353357,0.0002,2]
[406973120,1772388643522,-318.84759742,0.0002,2]
[406973123,1772388646618,-204.40723544,0.0002,2]
[406973139,1772389832131,-301.7028424,0.00012221,2]
[406973218,1772389838457,-290.2971576,0.00012221,2]
[406973219,1772389838466,-301.7028424,0.00012221,2]
[406973220,1772389838475,-150.0,0.00012696,2]
[406973221,1772389838485,-248.84313946,0.0001317,2]
[406973222,1772389838494,-208.88809555,0.00013173,2]
[406973223,1772389838503,-500.0,0.00013269,2]
[406973224,1772389838512,-314.88731584,0.00013269,2]
[406973225,1772389838521,-500.0,0.00013269,2]
[406973226,1772389838531,-500.0,0.00013269,2]
[406973227,1772389838540,-500.0,0.00013269,2]
[406973228,1772389838548,-500.0,0.00013269,2]
[406973229,1772389838558,-500.0,0.00013269,2]
[406973230,1772389838567,-500.0,0.00013269,2]
[406973231,1772389838576,-500.0,0.00013269,2]
[406973232,1772389838585,-500.0,0.00013269,2]
[406973233,1772389838594,-500.0,0.00013269,2]
[406973234,1772389838603,-500.0,0.00013269,2]
[406973235,1772389838612,-500.0,0.00013269,2]
[406973236,1772389838622,-500.0,0.00013269,2]
[406973237,1772389838632,-500.0,0.00013269,2]
[406973238,1772389838641,-500.0,0.00013269,2]
[406973239,1772389838649,-500.0,0.00013269,2]
[406973240,1772389838659,-500.0,0.00013269,2]
[406973242,1772389838668,-500.0,0.00013269,2]
[406973243,1772389838677,-500.0,0.00013269,2]
[406973244,1772389838685,-500.0,0.00013269,2]
[406973245,1772389838694,-500.0,0.00013269,2]
[406973246,1772389838703,-500.0,0.00013269,2]
[406973247,1772389838713,-500.0,0.00013269,2]
[406973248,1772389838722,-500.0,0.00013269,2]
[406973249,1772389838730,-500.0,0.00013269,2]
[406973250,1772389838739,-500.0,0.00013269,2]
[406973251,1772389838748,-500.0,0.00013269,2]
[406973252,1772389838757,-500.0,0.00013269,2]
[406973253,1772389838766,-457.75953213,0.00013269,2]
[406973254,1772389838775,-500.0,0.00013269,2]
[406973255,1772389838784,-500.0,0.00013269,2]
[406973256,1772389838793,-500.0,0.00013269,2]
[406973257,1772389838802,-300.0,0.00013269,2]
[406973258,1772389838811,-300.0,0.00013269,2]
[406973259,1772389838820,-300.0,0.00013269,2]
[406973260,1772389838829,-1200.0,0.00013269,2]
[406973261,1772389838838,-20883.3398483,0.0001327,2]
[406973262,1772389838850,-414.06079803,0.0001327,2]
[406973263,1772389838861,-310.42668819,0.0001327,2]
[406973264,1772389838872,-7851.86594783,0.0001327,2]
[406973265,1772389838883,-6640.1215953,0.0001327,2]
[406973266,1772389838892,-500.0,0.00013273,2]
[406973267,1772389838900,-500.0,0.00013273,2]
[406973268,1772389838909,-500.0,0.00013273,2]
[406973269,1772389838919,-429.64129287,0.00013273,2]
[406973270,1772389838928,-500.0,0.00013273,2]
[406973271,1772389838937,-500.0,0.00013273,2]
[406973272,1772389838946,-294.66255365,0.00013821,2]
[406973273,1772389838955,-986.59456374,0.00014175,2]
[406973274,1772389838964,-420.98986744,0.00014175,2]
[406973275,1772389838973,-420.0,0.00014547,2]
[406973276,1772389838983,-177.0,0.00014696,2]
[406973277,1772389838992,-587.0,0.00015949,2]
[406973278,1772389839003,-204.0,0.00016696,2]
[406973279,1772389839012,-300.0,0.00017486,2]
[406973280,1772389839021,-161.62398705,0.00018468,2]
[406973281,1772389839030,-744.97886799,0.0001859,2]
[406973282,1772389839040,-231.0,0.00018696,2]
[406973283,1772389839049,-3758.65690611,0.0001899,2]
[406973284,1772389839061,-10110.91712385,0.0001899,2]
[406973285,1772389839070,-250.0,0.00018996,2]
[406973286,1772389839080,-250.0,0.00018996,2]
[406973287,1772389839089,-250.0,0.00018996,2]
[406973288,1772389839098,-403.0,0.0001904,2]
[406973289,1772389839108,-1603.06552936,0.00019248,2]
[406973290,1772389839117,-186.5952388,0.00019288,2]
[406973291,1772389839127,-2182.0,0.00019349,2]
[406973292,1772389839136,-430.0,0.00019349,2]
[406973293,1772389839148,-729.0,0.00019349,2]
[406973294,1772389839157,-424.0,0.00019543,5]
[406973295,1772389839166,-686.0,0.00019543,5]
[406973296,1772389839176,-168.0,0.00019569,2]
[406973297,1772389839185,-254.971,0.000198,2]
[406973298,1772389839194,-978.96556123,0.0001999,2]
[406973299,1772389839204,-374.10469148,0.0001999,2]
[406973300,1772389839213,-1595.09796183,0.0001999,2]
[406973301,1772389839225,-2492.34056536,0.0001999,2]
[406973302,1772389839234,-335.92990312,0.0001999,2]
[406973303,1772389839244,-229.3978944,0.0001999,2]
[406973304,1772389839253,-427.83521841,0.0001999,2]
[406973305,1772389839263,-770.10339314,0.0001999,2]
[406973306,1772389839272,-524.36558314,0.0001999,2]
[406973307,1772389839281,-913.14033588,0.0001999,2]
[406973311,1772389840862,-603.519,0.0001999,2]
[406973333,1772389843614,-1738.99624944,0.0001999,2]
[406973337,1772389846418,-500.0,0.00013269,2]
[406973338,1772389846429,-329.72585838,0.0001999,2]
[406973339,1772389846438,-572.0,0.0001999,5]
[406973340,1772389846447,-776.0,0.0001999,5]
[406973341,1772389846457,-3077.15939317,0.00019999,2]
[406973342,1772389846469,-4006.78805793,0.00019999,2]
[406973343,1772389846478,-1225.4081702,0.00019999,2]
[406973344,1772389846488,-6230.3009524,0.00019999,2]
[406973345,1772389846497,-117050.43128626,0.0002,2]
[406973346,1772389846516,-8422.37070411,0.0002,2]
[406973347,1772389881830,-370.75834278,0.00013673,2]
[406973348,1772389883865,500.0,0.00013273,2]
[406973415,1772391032400,-500.0,0.00013273,2]
[406973417,1772391032410,-150.0,0.00013348,2]
[406973419,1772391032420,-370.75834278,0.00013673,2]
[406973421,1772391032430,-500.0,0.00013698,2]
[406973423,1772391032439,-490.05687719,0.00013698,2]
[406973425,1772391032449,-177.0,0.00015348,2]
[406973427,1772391032458,-102.24165722,0.00016618,2]
[406973443,1772391038575,-586.82700256,0.00016618,2]
[406973444,1772391038586,-204.0,0.00017348,2]
[406973445,1772391038595,-161.62398706,0.00018431,2]
[406973446,1772391038605,-306.9989676,0.00018456,2]
[406973447,1772391038615,-168.0,0.00018468,2]